[Event "Titled Tuesday Blitz August 15 Early 2023"]
[White "Yeritsyan, Hayk"]
[Black "Zavgorodniy, Sergiy"]
[WhiteFideId "13307320"]
[BlackFideId "14110148"]
[WhiteElo "2450"]
[BlackElo "2584"]
[Result "1-0"]
[Round "10"]
[TimeControl "180+1"]
[Date "2023.08.15"]
[WhiteClock "0:00:03"]
[BlackClock "0:00:35"]
[Board "67"]

1. d4 {[%clk 0:03:00]}  d5 {[%clk 0:02:59]} 2. Nf3 {[%clk 0:03:01]}  Nf6 {[%clk 0:02:58]} 3. e3 {[%clk 0:03:01]}  e6 {[%clk 0:02:58]} 4. Bd3 {[%clk 0:03:02]}  Bd6 {[%clk 0:02:57]} 5. Nbd2 {[%clk 0:03:02]}  O-O {[%clk 0:02:57]} 6. Qe2 {[%clk 0:03:02]}  c5 {[%clk 0:02:55]} 7. c3 {[%clk 0:03:03]}  Nbd7 {[%clk 0:02:55]} 8. e4 {[%clk 0:03:02]}  dxe4 {[%clk 0:02:53]} 9. Nxe4 {[%clk 0:03:03]}  Nxe4 {[%clk 0:02:53]} 10. Qxe4 {[%clk 0:03:04]}  Nf6 {[%clk 0:02:53]} 11. Qh4 {[%clk 0:03:04]}  cxd4 {[%clk 0:02:49]} 12. Bg5 {[%clk 0:03:04]}  h6 {[%clk 0:02:46]} 13. Bxh6 {[%clk 0:03:04]}  gxh6 {[%clk 0:02:46]} 14. Qxh6 {[%clk 0:03:04]}  e5 {[%clk 0:02:36]} 15. Ng5 {[%clk 0:02:39]}  e4 {[%clk 0:02:34]} 16. Bc4 {[%clk 0:01:01]}  Bf5 {[%clk 0:02:29]} 17. g4 {[%clk 0:00:55]}  Nxg4 {[%clk 0:02:22]} 18. Qh5 {[%clk 0:00:50]}  Qf6 {[%clk 0:02:14]} 19. Rg1 {[%clk 0:00:47]}  Bg6 {[%clk 0:01:52]} 20. Qxg4 {[%clk 0:00:41]}  dxc3 {[%clk 0:01:52]} 21. Nxf7 {[%clk 0:00:35]}  Kg7 {[%clk 0:01:43]} 22. Qxg6+ {[%clk 0:00:31]}  Qxg6 {[%clk 0:01:42]} 23. Rxg6+ {[%clk 0:00:29]}  Kxg6 {[%clk 0:01:43]} 24. Nxd6 {[%clk 0:00:29]}  cxb2 {[%clk 0:01:43]} 25. Rb1 {[%clk 0:00:29]}  Rad8 {[%clk 0:01:38]} 26. Nxb7 {[%clk 0:00:23]}  Rd4 {[%clk 0:01:33]} 27. Bb3 {[%clk 0:00:20]}  Rb8 {[%clk 0:01:16]} 28. Na5 {[%clk 0:00:14]}  Rb6 {[%clk 0:01:13]} 29. Rxb2 {[%clk 0:00:12]}  Kg5 {[%clk 0:01:13]} 30. Ke2 {[%clk 0:00:12]}  Kf4 {[%clk 0:01:13]} 31. Rc2 {[%clk 0:00:12]}  Rh6 {[%clk 0:01:11]} 32. Nc4 {[%clk 0:00:12]}  Rxh2 {[%clk 0:01:10]} 33. Ne3 {[%clk 0:00:13]}  Kg5 {[%clk 0:01:00]} 34. Rc5+ {[%clk 0:00:12]}  Kg6 {[%clk 0:01:00]} 35. Rc6+ {[%clk 0:00:12]}  Kh7 {[%clk 0:00:57]} 36. Rc7+ {[%clk 0:00:10]}  Kg6 {[%clk 0:00:57]} 37. Rxa7 {[%clk 0:00:11]}  Rd6 {[%clk 0:00:55]} 38. Ra4 {[%clk 0:00:09]}  Rh4 {[%clk 0:00:51]} 39. Ra5 {[%clk 0:00:07]}  Rf6 {[%clk 0:00:48]} 40. Re5 {[%clk 0:00:06]}  Rh2 {[%clk 0:00:47]} 41. Ng4 {[%clk 0:00:06]}  e3 {[%clk 0:00:36]} 42. Nxh2 {[%clk 0:00:04]}  Rxf2+ {[%clk 0:00:36]} 43. Kxe3 {[%clk 0:00:04]}  Rxh2 {[%clk 0:00:37]} 44. Kd4 {[%clk 0:00:04]}  Kf6 {[%clk 0:00:37]} 45. Re1 {[%clk 0:00:03]}  Rd2+ {[%clk 0:00:36]} 46. Kc5 {[%clk 0:00:04]}  Rd8 {[%clk 0:00:35]} 47. Kb4 {[%clk 0:00:04]}  Rc8 {[%clk 0:00:35]} 48. a4 {[%clk 0:00:03]}  Rb8+ {[%clk 0:00:36]} 49. Ka3 {[%clk 0:00:03]}  Kf5 {[%clk 0:00:36]} 50. Bc4 {[%clk 0:00:03]}  Ra8 {[%clk 0:00:37]} 51. Bb5 {[%clk 0:00:03]}  Kf4 {[%clk 0:00:37]} 52. Kb4 {[%clk 0:00:03]}  Rd8 {[%clk 0:00:36]} 53. a5 {[%clk 0:00:04]}  Rd1 {[%clk 0:00:35]} 54. Rxd1 {[%clk 0:00:03]} 1-0


[Site "https://www.chess.com"]

[Event "Titled Tuesday Blitz August 15 Early 2023"]
[White "Onufrienko, Vladislav"]
[Black "ExchangeAB"]
[WhiteFideId "13804332"]
[WhiteElo "2574"]
[BlackElo "2437"]
[Result "1-0"]
[Round "10"]
[TimeControl "180+1"]
[Date "2023.08.15"]
[WhiteClock "0:00:13"]
[BlackClock "0:00:00"]
[Board "69"]

1. e4 {[%clk 0:03:00]}  c6 {[%clk 0:02:59]} 2. d4 {[%clk 0:03:01]}  d5 {[%clk 0:03:00]} 3. e5 {[%clk 0:03:01]}  Bf5 {[%clk 0:02:59]} 4. Nf3 {[%clk 0:03:02]}  e6 {[%clk 0:03:00]} 5. Be2 {[%clk 0:03:03]}  Ne7 {[%clk 0:03:00]} 6. O-O {[%clk 0:03:03]}  h6 {[%clk 0:03:00]} 7. Be3 {[%clk 0:03:04]}  Nd7 {[%clk 0:03:01]} 8. Nbd2 {[%clk 0:03:03]}  g5 {[%clk 0:03:01]} 9. Re1 {[%clk 0:03:03]}  Bg7 {[%clk 0:03:01]} 10. Nf1 {[%clk 0:03:03]}  O-O {[%clk 0:03:00]} 11. Ng3 {[%clk 0:03:03]}  Bg6 {[%clk 0:03:01]} 12. Bd3 {[%clk 0:03:01]}  b6 {[%clk 0:02:58]} 13. h4 {[%clk 0:02:57]}  g4 {[%clk 0:02:46]} 14. Nh2 {[%clk 0:02:52]}  h5 {[%clk 0:02:45]} 15. Bg5 {[%clk 0:02:47]}  c5 {[%clk 0:02:38]} 16. c3 {[%clk 0:02:47]}  Rc8 {[%clk 0:02:11]} 17. Nhf1 {[%clk 0:02:39]}  Re8 {[%clk 0:02:03]} 18. Ne2 {[%clk 0:02:38]}  Qc7 {[%clk 0:02:02]} 19. Nf4 {[%clk 0:02:29]}  Nf5 {[%clk 0:01:58]} 20. Ng3 {[%clk 0:02:18]}  Nxg3 {[%clk 0:01:46]} 21. fxg3 {[%clk 0:02:17]}  Nf8 {[%clk 0:01:45]} 22. Rf1 {[%clk 0:02:05]}  a6 {[%clk 0:01:31]} 23. Kh2 {[%clk 0:02:02]}  b5 {[%clk 0:01:31]} 24. Bxg6 {[%clk 0:01:46]}  fxg6 {[%clk 0:01:30]} 25. Qd3 {[%clk 0:01:45]}  cxd4 {[%clk 0:01:21]} 26. cxd4 {[%clk 0:01:31]}  Qc2 {[%clk 0:01:20]} 27. Rac1 {[%clk 0:01:15]}  Qxd3 {[%clk 0:01:16]} 28. Nxd3 {[%clk 0:01:15]}  Rc4 {[%clk 0:01:13]} 29. Be3 {[%clk 0:01:07]}  Rec8 {[%clk 0:01:10]} 30. Nc5 {[%clk 0:01:05]}  Rc6 {[%clk 0:01:02]} 31. b3 {[%clk 0:01:05]}  Rxc1 {[%clk 0:01:02]} 32. Bxc1 {[%clk 0:01:03]}  Nh7 {[%clk 0:00:50]} 33. Be3 {[%clk 0:00:35]}  Bf8 {[%clk 0:00:48]} 34. Nd3 {[%clk 0:00:36]}  Be7 {[%clk 0:00:44]} 35. Rc1 {[%clk 0:00:29]}  Rxc1 {[%clk 0:00:44]} 36. Bxc1 {[%clk 0:00:30]}  Kf7 {[%clk 0:00:31]} 37. Bd2 {[%clk 0:00:29]}  Nf8 {[%clk 0:00:30]} 38. Bb4 {[%clk 0:00:27]}  Nd7 {[%clk 0:00:26]} 39. Kg1 {[%clk 0:00:25]}  Nb8 {[%clk 0:00:24]} 40. Kf2 {[%clk 0:00:20]}  Nc6 {[%clk 0:00:24]} 41. Bc3 {[%clk 0:00:20]}  g5 {[%clk 0:00:20]} 42. hxg5 {[%clk 0:00:18]}  Bxg5 {[%clk 0:00:21]} 43. Nc5 {[%clk 0:00:18]}  b4 {[%clk 0:00:18]} 44. Bb2 {[%clk 0:00:18]}  a5 {[%clk 0:00:17]} 45. Ke2 {[%clk 0:00:19]}  h4 {[%clk 0:00:17]} 46. gxh4 {[%clk 0:00:19]}  Bxh4 {[%clk 0:00:17]} 47. Kd3 {[%clk 0:00:20]}  Bf2 {[%clk 0:00:17]} 48. Nb7 {[%clk 0:00:20]}  Ke7 {[%clk 0:00:15]} 49. Nd6 {[%clk 0:00:18]}  Kd7 {[%clk 0:00:11]} 50. Nf7 {[%clk 0:00:19]}  g3 {[%clk 0:00:04]} 51. Nh6 {[%clk 0:00:19]}  Bg1 {[%clk 0:00:04]} 52. Ng4 {[%clk 0:00:19]}  Bf2 {[%clk 0:00:04]} 53. Nf6+ {[%clk 0:00:18]}  Ke7 {[%clk 0:00:04]} 54. Nh5 {[%clk 0:00:19]}  Kf7 {[%clk 0:00:04]} 55. Nf4 {[%clk 0:00:19]}  Ne7 {[%clk 0:00:04]} 56. a3 {[%clk 0:00:17]}  bxa3 {[%clk 0:00:03]} 57. Bxa3 {[%clk 0:00:17]}  Nf5 {[%clk 0:00:04]} 58. Bb2 {[%clk 0:00:17]}  Nh4 {[%clk 0:00:04]} 59. Bc3 {[%clk 0:00:16]}  a4 {[%clk 0:00:02]} 60. bxa4 {[%clk 0:00:16]}  Ke7 {[%clk 0:00:03]} 61. a5 {[%clk 0:00:16]}  Kd7 {[%clk 0:00:04]} 62. a6 {[%clk 0:00:16]}  Kc6 {[%clk 0:00:04]} 63. Ba5 {[%clk 0:00:14]}  Bg1 {[%clk 0:00:03]} 64. Nxe6 {[%clk 0:00:13]}  Nxg2 {[%clk 0:00:02]} 65. Nd8+ {[%clk 0:00:13]}  Kd7 {[%clk 0:00:02]} 66. a7 {[%clk 0:00:14]}  Nf4+ {[%clk 0:00:03]} 67. Kc2 {[%clk 0:00:13]}  Bxd4 {[%clk 0:00:00]} 68. a8=Q {[%clk 0:00:13]} 1-0


[Site "https://www.chess.com"]

[Event "Titled Tuesday Blitz August 15 Early 2023"]
[White "Vafin, Ayrat"]
[Black "Sreyas Payyappat"]
[WhiteFideId "4146530"]
[BlackFideId "46674969"]
[WhiteElo "2423"]
[BlackElo "2570"]
[Result "1-0"]
[Round "10"]
[TimeControl "180+1"]
[Date "2023.08.15"]
[WhiteClock "0:00:33"]
[BlackClock "0:01:36"]
[Board "70"]

1. Nf3 {[%clk 0:03:00]}  Nf6 {[%clk 0:02:57]} 2. g3 {[%clk 0:03:01]}  c5 {[%clk 0:02:56]} 3. Bg2 {[%clk 0:03:01]}  Nc6 {[%clk 0:02:56]} 4. d4 {[%clk 0:03:02]}  cxd4 {[%clk 0:02:56]} 5. Nxd4 {[%clk 0:03:02]}  g6 {[%clk 0:02:56]} 6. Nxc6 {[%clk 0:03:02]}  bxc6 {[%clk 0:02:57]} 7. c4 {[%clk 0:03:03]}  Bg7 {[%clk 0:02:58]} 8. Nc3 {[%clk 0:03:04]}  O-O {[%clk 0:02:59]} 9. O-O {[%clk 0:03:04]}  Bb7 {[%clk 0:02:59]} 10. Qc2 {[%clk 0:03:03]}  d5 {[%clk 0:02:59]} 11. Na4 {[%clk 0:02:59]}  e5 {[%clk 0:02:55]} 12. Nc5 {[%clk 0:02:46]}  Bc8 {[%clk 0:02:54]} 13. Bg5 {[%clk 0:02:42]}  Qd6 {[%clk 0:02:40]} 14. cxd5 {[%clk 0:02:20]}  cxd5 {[%clk 0:02:39]} 15. Rad1 {[%clk 0:02:21]}  Bf5 {[%clk 0:02:12]} 16. e4 {[%clk 0:01:41]}  Rac8 {[%clk 0:02:06]} 17. b4 {[%clk 0:01:30]}  a5 {[%clk 0:01:58]} 18. Bxf6 {[%clk 0:01:24]}  Bxf6 {[%clk 0:01:53]} 19. exf5 {[%clk 0:01:24]}  axb4 {[%clk 0:01:53]} 20. Rxd5 {[%clk 0:01:24]}  Qb6 {[%clk 0:01:53]} 21. Nd7 {[%clk 0:00:41]}  Rxc2 {[%clk 0:01:50]} 22. Nxb6 {[%clk 0:00:41]}  Rxa2 {[%clk 0:01:50]} 23. Nd7 {[%clk 0:00:41]}  Bg7 {[%clk 0:01:47]} 24. Nxf8 {[%clk 0:00:41]}  Kxf8 {[%clk 0:01:48]} 25. fxg6 {[%clk 0:00:39]}  hxg6 {[%clk 0:01:48]} 26. Rb5 {[%clk 0:00:39]}  Rb2 {[%clk 0:01:48]} 27. Bd5 {[%clk 0:00:39]}  f5 {[%clk 0:01:46]} 28. Rb7 {[%clk 0:00:35]}  Bh8 {[%clk 0:01:36]} 29. Rc1 {[%clk 0:00:33]} 1-0


[Site "https://www.chess.com"]

[Event "Titled Tuesday Blitz August 15 Early 2023"]
[White "Toncheva, Nadya"]
[Black "Rietze, Clemens, Dr."]
[WhiteFideId "2924056"]
[BlackFideId "24620351"]
[WhiteElo "2566"]
[BlackElo "2422"]
[Result "1-0"]
[Round "10"]
[TimeControl "180+1"]
[Date "2023.08.15"]
[WhiteClock "0:00:58"]
[BlackClock "0:00:36"]
[Board "71"]

1. d4 {[%clk 0:03:00]}  Nf6 {[%clk 0:02:59]} 2. c4 {[%clk 0:03:01]}  g6 {[%clk 0:02:59]} 3. Nc3 {[%clk 0:03:01]}  Bg7 {[%clk 0:02:59]} 4. e4 {[%clk 0:03:01]}  d6 {[%clk 0:03:00]} 5. f4 {[%clk 0:03:01]}  O-O {[%clk 0:03:00]} 6. Nf3 {[%clk 0:03:01]}  Na6 {[%clk 0:02:59]} 7. Bd3 {[%clk 0:03:00]}  e5 {[%clk 0:02:59]} 8. fxe5 {[%clk 0:02:59]}  dxe5 {[%clk 0:02:59]} 9. d5 {[%clk 0:02:59]}  Nc5 {[%clk 0:03:00]} 10. Bg5 {[%clk 0:02:59]}  h6 {[%clk 0:02:54]} 11. Bh4 {[%clk 0:02:54]}  g5 {[%clk 0:02:29]} 12. Bf2 {[%clk 0:02:52]}  Nxd3+ {[%clk 0:02:15]} 13. Qxd3 {[%clk 0:02:52]}  Nh5 {[%clk 0:02:15]} 14. g3 {[%clk 0:02:25]}  f5 {[%clk 0:02:15]} 15. Bc5 {[%clk 0:02:21]}  Rf7 {[%clk 0:02:08]} 16. O-O-O {[%clk 0:02:19]}  b6 {[%clk 0:02:01]} 17. Ba3 {[%clk 0:02:15]}  fxe4 {[%clk 0:01:38]} 18. Nxe4 {[%clk 0:02:12]}  Bf5 {[%clk 0:01:34]} 19. Qe3 {[%clk 0:02:05]}  Nf6 {[%clk 0:01:29]} 20. Nfd2 {[%clk 0:01:52]}  Ng4 {[%clk 0:01:17]} 21. Qe2 {[%clk 0:01:52]}  b5 {[%clk 0:01:10]} 22. Rhf1 {[%clk 0:01:40]}  bxc4 {[%clk 0:01:03]} 23. Rxf5 {[%clk 0:01:24]}  Rxf5 {[%clk 0:01:04]} 24. Qxg4 {[%clk 0:01:24]}  Rf7 {[%clk 0:00:57]} 25. Nxc4 {[%clk 0:01:20]}  Bf8 {[%clk 0:00:57]} 26. Nxe5 {[%clk 0:01:14]}  Bxa3 {[%clk 0:00:50]} 27. Nxf7 {[%clk 0:01:11]}  Bxb2+ {[%clk 0:00:49]} 28. Kxb2 {[%clk 0:01:06]}  Kxf7 {[%clk 0:00:50]} 29. Qe6+ {[%clk 0:01:03]}  Kg7 {[%clk 0:00:49]} 30. Rf1 {[%clk 0:01:02]}  Rb8+ {[%clk 0:00:49]} 31. Kc2 {[%clk 0:01:01]}  Rb6 {[%clk 0:00:49]} 32. Rf7+ {[%clk 0:00:58]}  Kh8 {[%clk 0:00:36]} 33. Nf6 {[%clk 0:00:58]} 1-0


[Site "https://www.chess.com"]

[Event "Titled Tuesday Blitz August 15 Early 2023"]
[White "Kozelov, Roman"]
[Black "Yelisieiev, Yevhenii"]
[WhiteFideId "14133377"]
[BlackFideId "14139642"]
[WhiteElo "2418"]
[BlackElo "2556"]
[Result "0-1"]
[Round "10"]
[TimeControl "180+1"]
[Date "2023.08.15"]
[WhiteClock "0:00:00"]
[BlackClock "0:00:10"]
[Board "73"]

1. e4 {[%clk 0:02:58]}  d6 {[%clk 0:03:00]} 2. d4 {[%clk 0:02:57]}  Nf6 {[%clk 0:03:01]} 3. Nc3 {[%clk 0:02:56]}  e5 {[%clk 0:03:02]} 4. dxe5 {[%clk 0:02:56]}  dxe5 {[%clk 0:03:02]} 5. Qxd8+ {[%clk 0:02:56]}  Kxd8 {[%clk 0:03:03]} 6. Bg5 {[%clk 0:02:53]}  c6 {[%clk 0:03:04]} 7. Nf3 {[%clk 0:02:44]}  Nd7 {[%clk 0:03:04]} 8. O-O-O {[%clk 0:02:43]}  Kc7 {[%clk 0:03:04]} 9. Bc4 {[%clk 0:02:43]}  Ng4 {[%clk 0:03:03]} 10. Bh4 {[%clk 0:02:36]}  f6 {[%clk 0:03:02]} 11. h3 {[%clk 0:02:30]}  Nh6 {[%clk 0:03:01]} 12. Ne1 {[%clk 0:02:23]}  b5 {[%clk 0:03:00]} 13. Bb3 {[%clk 0:02:23]}  Nc5 {[%clk 0:02:56]} 14. Nd3 {[%clk 0:02:20]}  a5 {[%clk 0:02:52]} 15. a4 {[%clk 0:02:16]}  Nxb3+ {[%clk 0:02:41]} 16. cxb3 {[%clk 0:02:15]}  bxa4 {[%clk 0:02:26]} 17. Nxa4 {[%clk 0:02:11]}  Nf7 {[%clk 0:02:14]} 18. Bg3 {[%clk 0:02:09]}  Rb8 {[%clk 0:02:09]} 19. Ndc5 {[%clk 0:02:02]}  Rb5 {[%clk 0:02:06]} 20. Nd3 {[%clk 0:01:55]}  Rxb3 {[%clk 0:02:04]} 21. f4 {[%clk 0:01:54]}  Bd6 {[%clk 0:01:58]} 22. fxe5 {[%clk 0:01:46]}  Nxe5 {[%clk 0:01:57]} 23. Bxe5 {[%clk 0:01:42]}  fxe5 {[%clk 0:01:52]} 24. Rhf1 {[%clk 0:01:41]}  Rd8 {[%clk 0:01:37]} 25. Nac5 {[%clk 0:01:09]}  Rb5 {[%clk 0:01:29]} 26. Rf7+ {[%clk 0:01:08]}  Kb8 {[%clk 0:01:29]} 27. Na4 {[%clk 0:01:03]}  Bf8 {[%clk 0:01:21]} 28. Nf2 {[%clk 0:00:32]}  Rxd1+ {[%clk 0:01:10]} 29. Nxd1 {[%clk 0:00:31]}  Bd6 {[%clk 0:00:56]} 30. Rxg7 {[%clk 0:00:31]}  Rb7 {[%clk 0:00:57]} 31. Rg8 {[%clk 0:00:32]}  Kc7 {[%clk 0:00:43]} 32. Ne3 {[%clk 0:00:29]}  Be6 {[%clk 0:00:41]} 33. Rh8 {[%clk 0:00:23]}  Rb4 {[%clk 0:00:29]} 34. Rxh7+ {[%clk 0:00:21]}  Kb8 {[%clk 0:00:28]} 35. Nc3 {[%clk 0:00:22]}  Bc5 {[%clk 0:00:28]} 36. Nf5 {[%clk 0:00:20]}  a4 {[%clk 0:00:24]} 37. Rh6 {[%clk 0:00:18]}  Bd7 {[%clk 0:00:20]} 38. Rh7 {[%clk 0:00:18]}  Kc8 {[%clk 0:00:19]} 39. Ne7+ {[%clk 0:00:17]}  Kd8 {[%clk 0:00:19]} 40. Ng6 {[%clk 0:00:17]}  Bd4 {[%clk 0:00:17]} 41. Rh5 {[%clk 0:00:12]}  a3 {[%clk 0:00:17]} 42. bxa3 {[%clk 0:00:10]}  Rc4 {[%clk 0:00:18]} 43. Nxe5 {[%clk 0:00:10]}  Rxc3+ {[%clk 0:00:18]} 44. Kd2 {[%clk 0:00:10]}  Bxe5 {[%clk 0:00:17]} 45. Rxe5 {[%clk 0:00:09]}  Rg3 {[%clk 0:00:17]} 46. Ra5 {[%clk 0:00:04]}  Rxg2+ {[%clk 0:00:16]} 47. Kd3 {[%clk 0:00:05]}  Rg3+ {[%clk 0:00:17]} 48. Kd4 {[%clk 0:00:05]}  Rxh3 {[%clk 0:00:17]} 49. Ra7 {[%clk 0:00:06]}  Ke7 {[%clk 0:00:13]} 50. a4 {[%clk 0:00:05]}  Ra3 {[%clk 0:00:12]} 51. a5 {[%clk 0:00:05]}  Kd6 {[%clk 0:00:12]} 52. e5+ {[%clk 0:00:05]}  Ke6 {[%clk 0:00:12]} 53. a6 {[%clk 0:00:04]}  Ra5 {[%clk 0:00:11]} 54. Ra8 {[%clk 0:00:03]}  c5+ {[%clk 0:00:11]} 55. Kc4 {[%clk 0:00:00]}  Bc6 {[%clk 0:00:10]} 0-1


[Site "https://www.chess.com"]

[Event "Titled Tuesday Blitz August 15 Early 2023"]
[White "Karamsetty, Jeevan"]
[Black "EvgenyBurmakin"]
[WhiteFideId "2025337"]
[WhiteElo "2547"]
[BlackElo "2308"]
[Result "1-0"]
[Round "10"]
[TimeControl "180+1"]
[Date "2023.08.15"]
[WhiteClock "0:00:12"]
[BlackClock "0:00:00"]
[Board "79"]

1. e4 {[%clk 0:03:00]}  c5 {[%clk 0:02:58]} 2. c3 {[%clk 0:02:58]}  Nf6 {[%clk 0:02:57]} 3. e5 {[%clk 0:02:57]}  Nd5 {[%clk 0:02:57]} 4. d4 {[%clk 0:02:58]}  e6 {[%clk 0:02:57]} 5. Nf3 {[%clk 0:02:58]}  d6 {[%clk 0:02:57]} 6. exd6 {[%clk 0:02:58]}  Bxd6 {[%clk 0:02:47]} 7. Bb5+ {[%clk 0:02:57]}  Bd7 {[%clk 0:02:42]} 8. Bxd7+ {[%clk 0:02:55]}  Nxd7 {[%clk 0:02:42]} 9. O-O {[%clk 0:02:45]}  cxd4 {[%clk 0:02:36]} 10. Nxd4 {[%clk 0:02:42]}  O-O {[%clk 0:02:30]} 11. Nd2 {[%clk 0:02:39]}  a6 {[%clk 0:02:13]} 12. Ne4 {[%clk 0:02:31]}  Bxh2+ {[%clk 0:02:06]} 13. Kxh2 {[%clk 0:02:22]}  Qh4+ {[%clk 0:02:05]} 14. Kg1 {[%clk 0:02:23]}  Qxe4 {[%clk 0:02:05]} 15. Qh5 {[%clk 0:02:15]}  N7f6 {[%clk 0:01:56]} 16. Qh3 {[%clk 0:02:13]}  Rad8 {[%clk 0:01:44]} 17. Bg5 {[%clk 0:02:12]}  h6 {[%clk 0:01:38]} 18. Bh4 {[%clk 0:02:09]}  Rd7 {[%clk 0:01:34]} 19. f3 {[%clk 0:01:55]}  Qg6 {[%clk 0:01:27]} 20. Rae1 {[%clk 0:01:54]}  Nf4 {[%clk 0:01:23]} 21. Qh2 {[%clk 0:01:54]}  Nd3 {[%clk 0:01:16]} 22. Re2 {[%clk 0:01:53]}  Nd5 {[%clk 0:01:12]} 23. Bg3 {[%clk 0:01:45]}  Re8 {[%clk 0:01:06]} 24. Rd1 {[%clk 0:01:39]}  b5 {[%clk 0:00:51]} 25. Nc6 {[%clk 0:01:28]}  f6 {[%clk 0:00:44]} 26. Nd4 {[%clk 0:01:05]}  e5 {[%clk 0:00:42]} 27. Qh3 {[%clk 0:00:53]}  exd4 {[%clk 0:00:17]} 28. Qxd7 {[%clk 0:00:38]}  Rxe2 {[%clk 0:00:16]} 29. Qxd5+ {[%clk 0:00:38]}  Kh7 {[%clk 0:00:16]} 30. Qxd4 {[%clk 0:00:33]}  Nxb2 {[%clk 0:00:09]} 31. Rd2 {[%clk 0:00:20]}  Rxd2 {[%clk 0:00:07]} 32. Qxd2 {[%clk 0:00:21]}  Qxg3 {[%clk 0:00:06]} 33. Qxb2 {[%clk 0:00:17]}  Qe1+ {[%clk 0:00:05]} 34. Kh2 {[%clk 0:00:18]}  Qh4+ {[%clk 0:00:06]} 35. Kg1 {[%clk 0:00:18]}  Qe1+ {[%clk 0:00:05]} 36. Kh2 {[%clk 0:00:19]}  h5 {[%clk 0:00:04]} 37. Qc2+ {[%clk 0:00:18]}  Kh6 {[%clk 0:00:04]} 38. g3 {[%clk 0:00:13]}  h4 {[%clk 0:00:03]} 39. gxh4 {[%clk 0:00:13]}  Qxh4+ {[%clk 0:00:03]} 40. Kg2 {[%clk 0:00:13]}  Qg5+ {[%clk 0:00:03]} 41. Kf2 {[%clk 0:00:14]}  Qc5+ {[%clk 0:00:03]} 42. Kg2 {[%clk 0:00:14]}  b4 {[%clk 0:00:02]} 43. Qd2+ {[%clk 0:00:12]}  Kh7 {[%clk 0:00:00]} 44. cxb4 {[%clk 0:00:12]} 1-0


[Site "https://www.chess.com"]

[Event "Titled Tuesday Blitz August 15 Early 2023"]
[White "Dong Khanh Linh"]
[Black "Starozhilov, Leonid"]
[WhiteFideId "12403040"]
[BlackFideId "14106752"]
[WhiteElo "2457"]
[BlackElo "2674"]
[Result "0-1"]
[Round "10"]
[TimeControl "180+1"]
[Date "2023.08.15"]
[WhiteClock "0:00:01"]
[BlackClock "0:00:09"]
[Board "81"]

1. d4 {[%clk 0:03:00]}  g6 {[%clk 0:02:59]} 2. Nf3 {[%clk 0:03:01]}  Bg7 {[%clk 0:02:59]} 3. Nbd2 {[%clk 0:03:01]}  d6 {[%clk 0:02:58]} 4. e4 {[%clk 0:03:02]}  Nf6 {[%clk 0:02:57]} 5. c3 {[%clk 0:03:02]}  O-O {[%clk 0:02:57]} 6. Bd3 {[%clk 0:03:02]}  c5 {[%clk 0:02:56]} 7. O-O {[%clk 0:03:03]}  cxd4 {[%clk 0:02:56]} 8. cxd4 {[%clk 0:03:03]}  Bg4 {[%clk 0:02:57]} 9. h3 {[%clk 0:03:03]}  Bxf3 {[%clk 0:02:57]} 10. Nxf3 {[%clk 0:03:04]}  Nc6 {[%clk 0:02:58]} 11. Be3 {[%clk 0:03:02]}  Nd7 {[%clk 0:02:52]} 12. a3 {[%clk 0:03:01]}  Qb6 {[%clk 0:02:49]} 13. d5 {[%clk 0:02:54]}  Nd4 {[%clk 0:02:49]} 14. Bxd4 {[%clk 0:02:37]}  Bxd4 {[%clk 0:02:50]} 15. Nxd4 {[%clk 0:02:37]}  Qxd4 {[%clk 0:02:50]} 16. Bb5 {[%clk 0:02:38]}  Qxd1 {[%clk 0:02:43]} 17. Rfxd1 {[%clk 0:02:39]}  Nf6 {[%clk 0:02:35]} 18. Bd3 {[%clk 0:02:33]}  Rfc8 {[%clk 0:02:34]} 19. Rac1 {[%clk 0:02:32]}  a6 {[%clk 0:02:30]} 20. f4 {[%clk 0:02:31]}  Nd7 {[%clk 0:02:27]} 21. b4 {[%clk 0:02:28]}  Kg7 {[%clk 0:02:22]} 22. Kf2 {[%clk 0:02:28]}  a5 {[%clk 0:02:20]} 23. Ke3 {[%clk 0:02:25]}  axb4 {[%clk 0:02:19]} 24. axb4 {[%clk 0:02:26]}  Nb6 {[%clk 0:02:17]} 25. Rxc8 {[%clk 0:02:17]}  Rxc8 {[%clk 0:02:13]} 26. Kd4 {[%clk 0:02:02]}  h5 {[%clk 0:01:56]} 27. h4 {[%clk 0:01:57]}  e6 {[%clk 0:01:45]} 28. dxe6 {[%clk 0:01:47]}  fxe6 {[%clk 0:01:46]} 29. e5 {[%clk 0:01:47]}  Rd8 {[%clk 0:01:32]} 30. exd6 {[%clk 0:01:43]}  Rxd6+ {[%clk 0:01:32]} 31. Ke5 {[%clk 0:01:43]}  Nc4+ {[%clk 0:01:25]} 32. Ke4 {[%clk 0:01:37]}  Nb2 {[%clk 0:00:56]} 33. Rd2 {[%clk 0:01:34]}  Nxd3 {[%clk 0:00:53]} 34. Rxd3 {[%clk 0:01:34]}  Rb6 {[%clk 0:00:53]} 35. Rd4 {[%clk 0:00:53]}  Kf6 {[%clk 0:00:52]} 36. g3 {[%clk 0:00:51]}  Rc6 {[%clk 0:00:48]} 37. b5 {[%clk 0:00:30]}  Rc5 {[%clk 0:00:47]} 38. b6 {[%clk 0:00:14]}  Rc6 {[%clk 0:00:47]} 39. Rb4 {[%clk 0:00:13]}  Rc3 {[%clk 0:00:47]} 40. Rd4 {[%clk 0:00:12]}  Rb3 {[%clk 0:00:42]} 41. Rd8 {[%clk 0:00:09]}  Rxb6 {[%clk 0:00:36]} 42. Rf8+ {[%clk 0:00:10]}  Kg7 {[%clk 0:00:36]} 43. Rc8 {[%clk 0:00:09]}  Rb3 {[%clk 0:00:36]} 44. Ke5 {[%clk 0:00:06]}  Re3+ {[%clk 0:00:36]} 45. Kd6 {[%clk 0:00:06]}  Rxg3 {[%clk 0:00:31]} 46. Kxe6 {[%clk 0:00:04]}  Re3+ {[%clk 0:00:31]} 47. Kd5 {[%clk 0:00:04]}  Rh3 {[%clk 0:00:27]} 48. Rc7+ {[%clk 0:00:04]}  Kf6 {[%clk 0:00:21]} 49. Rxb7 {[%clk 0:00:04]}  Rxh4 {[%clk 0:00:21]} 50. Ke4 {[%clk 0:00:04]}  g5 {[%clk 0:00:21]} 51. Rb6+ {[%clk 0:00:04]}  Kf7 {[%clk 0:00:19]} 52. Rb7+ {[%clk 0:00:04]}  Ke6 {[%clk 0:00:18]} 53. Rb6+ {[%clk 0:00:05]}  Kd7 {[%clk 0:00:18]} 54. Rf6 {[%clk 0:00:04]}  g4 {[%clk 0:00:18]} 55. Rh6 {[%clk 0:00:04]}  Rh1 {[%clk 0:00:10]} 56. f5 {[%clk 0:00:04]}  Ke7 {[%clk 0:00:10]} 57. Kf4 {[%clk 0:00:03]}  Rf1+ {[%clk 0:00:07]} 58. Ke5 {[%clk 0:00:03]}  g3 {[%clk 0:00:07]} 59. Rh7+ {[%clk 0:00:02]}  Kf8 {[%clk 0:00:06]} 60. Kf6 {[%clk 0:00:03]}  Ke8 {[%clk 0:00:06]} 61. Rh8+ {[%clk 0:00:01]}  Kd7 {[%clk 0:00:07]} 62. Rh7+ {[%clk 0:00:02]}  Kd6 {[%clk 0:00:07]} 63. Rxh5 {[%clk 0:00:01]}  g2 {[%clk 0:00:07]} 64. Rg5 {[%clk 0:00:01]}  g1=Q {[%clk 0:00:07]} 65. Rxg1 {[%clk 0:00:02]}  Rxg1 {[%clk 0:00:08]} 66. Kf7 {[%clk 0:00:02]}  Rf1 {[%clk 0:00:08]} 67. f6 {[%clk 0:00:01]}  Ke5 {[%clk 0:00:09]} 0-1


[Site "https://www.chess.com"]